Cogmind - Beta 17.1 @@@ ROGUE MODE // 2026.09.07 @ 20:37:52 Player: frazz Result: Destroyed by P-60 Hacker with Shock Rifle Performance ------------- Evolutions (4) 2000 Regions Visited (7) 1400 Robots Destroyed (14) 70 Value Destroyed (402) 402 Prototype IDs (26) 520 Alien Tech Used (0) 0 Bonus (420) 420 TOTAL SCORE: 4812 Bonus ------- Follower Combat Kills 120 Aligned with FarCom 300 Cogmind --------- Core Integrity 0/850 Matter 175/300 Energy 99/100 System Corruption 10% Temperature Cool (0) Movement Core (50) Location -6/Factory Parts ------- > --- POWER (3) -------- (None) > --- PROPULSION (4) --- (None) > --- UTILITY (6) ------ (None) > --- WEAPON (2) ------- (None) > --- INVENTORY (5) ---- Light Angular Momentum Engine Improved Trap Scanner Peak State ------------ > --- POWER ------------ Ion Engine > --- PROPULSION ------- Airjet Gravmag System > --- UTILITY ---------- Heat Sink Small Storage Unit Improved Trap Scanner Light Armor Plating > --- WEAPON ----------- Heavy Assault Rifle Field Lobotomy Kit > --- INVENTORY -------- Micro Nuclear Core Micro Nuclear Core Light Angular Momentum Engine Aluminum Leg Improved Trap Scanner Grenade Launcher [Rating: 30] Favorites ----------- Power Ion Engine Engine Ion Engine Power Core Micro Nuclear Core Propulsion Aluminum Leg Leg Aluminum Leg Hover Unit Gravmag System Utility Small Storage Unit Device Heat Sink Storage Small Storage Unit Protection Light Armor Plating Weapon Medium Laser Energy Gun Medium Laser Ballistic Gun Light Assault Rifle Launcher Grenade Launcher Special Weapon Field Lobotomy Kit Build | -11 -10 -10 -10 -9 -8 -7 -6 ------- Run | Yrd Mat Min Exi Min Mat Fac Fac Slots Evolved 8 | . . . . . 4 2 2 Power 2 | . . . . . 1 1 . Propulsion 2 | . . . . . 1 . 1 Utility 4 | . . . . . 2 1 1 Weapon . | . . . . . . . . Parts Attached 23 | 7 . 5 . 1 3 3 4 Power 4 | 1 . 1 . . . . 2 Engine 3 | 1 . 1 . . . . 1 Core 1 | . . . . . . . 1 Reactor . | . . . . . . . . Propulsion 8 | 2 . 3 . 1 . 1 1 Treads . | . . . . . . . . Leg 6 | 2 . 3 . . . . 1 Wheel . | . . . . . . . . Hover 2 | . . . . 1 . 1 . Flight . | . . . . . . . . Utility 6 | 2 . 1 . . 2 1 . Device 4 | 1 . 1 . . 1 1 . Storage 1 | 1 . . . . . . . Processor . | . . . . . . . . Hackware . | . . . . . . . . Protection 1 | . . . . . 1 . . Artifact . | . . . . . . . . Weapon 5 | 2 . . . . 1 1 1 Energy Gun 1 | 1 . . . . . . . Energy Cannon . | . . . . . . . . Ballistic Gun 2 | 1 . . . . 1 . . Ballistic Cannon . | . . . . . . . . Launcher 1 | . . . . . . . 1 Special Weapon 1 | . . . . . . 1 . Impact Weapon . | . . . . . . . . Slashing Weapon . | . . . . . . . . Piercing Weapon . | . . . . . . . . Special Melee Weapon . | . . . . . . . . Unidentified Prototypes 1 | . . 1 . . . . . Parts Lost 12 | . . 1 . . . . 11 Power 2 | . . . . . . . 2 Propulsion 3 | . . . . . . . 3 Utility 5 | . . 1 . . . . 4 Weapon 2 | . . . . . . . 2 Highest Loss Streak 11 | . . 1 . . . . 11 To Critical Strikes . | . . . . . . . . Average Backups 7 | 2 5 7 8 8 7 7 7 Power 2 | 1 2 3 3 3 3 2 2 Propulsion 1 | . . 1 2 1 1 1 . Utility . | . . . . . . . 1 Weapon 2 | . 2 2 2 2 1 2 1 Tool/Special . | . . . . . . . . Unused Backups 10 | . . 4 1 1 1 1 2 Power 4 | . . 1 . . 1 1 1 Propulsion 1 | . . . . 1 . . . Utility 2 | . . 1 . . . . 1 Weapon 3 | . . 2 1 . . . . Tool/Special . | . . . . . . . . Average Slot Usage (%) 64 | . 97 100 100 43 21 51 39 Engine 7 | . 14 14 14 3 . 6 . Core 1 | . . . . . . . 5 Leg 10 | . 27 28 28 6 . . . Hover 8 | . . . . 11 9 14 11 Device 11 | . 13 14 14 3 1 13 11 Storage 9 | . 14 14 14 14 9 7 5 Protection 3 | . . . . . 1 7 5 Energy Gun 5 | . 14 14 14 3 . . . Ballistic Gun 5 | . 13 14 14 3 . . . Peak Build Rating 30 | 7 7 16 17 19 9 30 24 Average Rating 14 | 5 6 10 16 8 7 17 18 On Entrance 10 | . 7 7 16 17 7 9 19 Avg Prop Armor Cover (%) 25 | . . . . . . . 25 Naked Turns 93 | . . . . . . . 93 Heaviest Build 25 | 14 14 14 14 14 9 25 18 Greatest Support 20 | 20 20 20 20 20 10 19 19 Greatest Overweight (x) 4 | . 4 . . . . 1 4 Average Overweight (x) . | . . . . . . . . Largest Inventory Capacity 8 | 8 8 8 8 8 8 8 8 Average Capacity 7 | 6 8 8 8 8 8 8 7 Most Carried 8 | 4 8 8 8 8 8 8 8 Average Carried 7 | 2 5 7 8 7 7 7 7 Final Capacity 8 | 8 8 8 8 8 8 8 5 Final Carried 8 | 3 7 8 8 8 7 8 2 Class Distribution -------------------- 98% | Mutant Dominant Class ---------------- Mutant | -10/Materials Mutant | -10/Mines Mutant | -10/Exiles Mutant | -9/Mines Mutant | -8/Materials Mutant | -7/Factory Mutant | -6/Factory Resources | -11 -10 -10 -10 -9 -8 -7 -6 ----------- Run | Yrd Mat Min Exi Min Mat Fac Fac Matter Collected 415 | 288 . 117 . 10 . . . Remotely . | . . . . . . . . Salvage Created 507 | 91 . 285 . . 55 . 76 Parts 35 | 5 . 16 . . 4 . 10 Haulers Intercepted . | . . . . . . . . Recyclers Shooed . | . . . . . . . . Parts Field Recycled . | . . . . . . . . Retrieved Matter . | . . . . . . . . Parts Self-Destructed . | . . . . . . . . Prevented . | . . . . . . . . Parts Restored . | . . . . . . . . Kills | -11 -10 -10 -10 -9 -8 -7 -6 ------- Run | Yrd Mat Min Exi Min Mat Fac Fac Combat Hostiles Destroyed 11 | . . 7 . . 1 . 3 Guns 8 | . . 7 . . 1 . . AOE 3 | . . . . . . . 3 Classes Destroyed 6 | 2 . 3 . . . . 1 Worker 1 | . . . . . . . 1 Tunneler 1 | 1 . . . . . . . Recycler 1 | 1 . . . . . . . Swarmer 4 | . . 1 . . . . 3 Grunt 4 | . . 4 . . . . . Sentry 3 | . . 2 . . 1 . . Best Kill Streak 4 | 2 . 3 . . 1 . 4 Combat Bots Only 3 | . . 3 . . 1 . 3 Max Kills in Single Turn 4 | 1 . 1 . . 1 . 4 Gunslinging . | . . . . . . . . Exploded 3 | . . . . . . . 3 Melee . | . . . . . . . . Uniques/NPCs Destroyed . | . . . . . . . . Combat | -11 -10 -10 -10 -9 -8 -7 -6 -------- Run | Yrd Mat Min Exi Min Mat Fac Fac Hostile Shots Fired 221 | . . 36 . 1 24 3 157 Missed 79 | . . 9 . 1 12 1 56 Hits 142 | . . 27 . . 12 2 101 Projectile 142 | . . 27 . . 12 2 101 Critical Strikes 3 | . . 1 . . . . 2 Part Disruptions 1 | . . . . . . . 1 Damage Taken 2110 | . . 349 . . 190 28 1543 Core 1062 | . . 72 . . 131 . 859 Absorbed by Shields . | . . . . . . . . Core Remaining (%) 86 | 100 . . . 71 76 100 . Volleys Fired 40 | 8 . 20 . . 3 1 8 Largest 2 | 2 . 2 . . 1 1 1 Hottest 70 | 70 . 70 . . 23 . 30 Shots Fired 68 | 16 . 40 . . 3 1 8 Gun 65 | 16 . 40 . . 3 . 6 Cannon . | . . . . . . . . Launcher 2 | . . . . . . . 2 Special 1 | . . . . . . 1 . Kinetic 37 | 8 . 20 . . 3 . 6 Thermal 28 | 8 . 20 . . . . . Explosive 2 | . . . . . . . 2 Electromagnetic . | . . . . . . . . Robot Hit Streak 14 | 4 . 14 . . 10 2 6 Robot Miss Streak 2 | 2 . 2 . . 1 . 2 Penetration Max . | . . . . . . . . Secondary Targets 1 | . . 1 . . . . . Max Gunslinging Chain 1 | . . 1 . . . . . Shots Hit Robots 48 | 9 . 30 . . 2 1 6 Core Hits 33 | 4 . 16 . . 2 . 11 Critical Kills . | . . . . . . . . Critical Parts Destroyed . | . . . . . . . . Critical Strikes 1 | . . 1 . . . . . Burn 1 | . . 1 . . . . . Melee Attacks . | . . . . . . . . Impact . | . . . . . . . . Slashing . | . . . . . . . . Piercing . | . . . . . . . . Sneak Attacks . | . . . . . . . . Combat Hostiles . | . . . . . . . . Follow-up Attacks . | . . . . . . . . Damage Inflicted 887 | 88 . 347 . . 25 . 427 Guns 527 | 88 . 347 . . 25 . 67 Cannons . | . . . . . . . . Explosions 352 | . . . . . . . 352 Melee . | . . . . . . . . Ramming 8 | . . . . . . . 8 Kinetic 223 | 25 . 106 . . 25 . 67 Thermal 304 | 63 . 241 . . . . . Explosive 352 | . . . . . . . 352 Electromagnetic . | . . . . . . . . Impact . | . . . . . . . . Slashing . | . . . . . . . . Piercing . | . . . . . . . . Highest Corruption 10 | . . . . . . . 10 Average Corruption 7 | . . . . . . . 7 Corruption Purged . | . . . . . . . . Corruption Blocked . | . . . . . . . . Effects 8 | . . . . . . . 8 Message Errors 1 | . . . . . . . 1 Heat Flow Errors 2 | . . . . . . . 2 Data Loss (minor) 3 | . . . . . . . 3 Misdirections 2 | . . . . . . . 2 Overload Shots . | . . . . . . . . Overflow Damage 22 | . . . . . . . 22 Projectiles . | . . . . . . . . Explosions 22 | . . . . . . . 22 Melee . | . . . . . . . . Knockbacks . | . . . . . . . . Impact . | . . . . . . . . Kinetic . | . . . . . . . . Secondary . | . . . . . . . . Self-Inflicted Damage 3 | . . . . . . . 3 Shots . | . . . . . . . . Rammed 2 | . . . . . . . 2 Targets Rammed 2 | . . . . . . . 2 Kicked . | . . . . . . . . Crushed . | . . . . . . . . Highest Temperature 172 | 70 . 172 . . . . 143 Average Temperature 58 | 27 . 66 . . . . 82 Received Heat Transfer 231 | . . 159 . . 63 9 . Siege Activations . | . . . . . . . . Martial Activations . | . . . . . . . . Shielding Activations . | . . . . . . . . Robots Disrupted . | . . . . . . . . Combat Hostiles . | . . . . . . . . Robots Corrupted . | . . . . . . . . Combat Hostiles . | . . . . . . . . Parts Fried . | . . . . . . . . Impact Corruptions . | . . . . . . . . Robots Melted . | . . . . . . . . Combat Hostiles . | . . . . . . . . Parts Melted 2 | . . 2 . . . . . Heat Transferred 962 | 185 . 777 . . . . . Parts Sabotaged . | . . . . . . . . Parts Stolen . | . . . . . . . . Parts Stripped . | . . . . . . . . Power Chain Reactions . | . . . . . . . . Alert | -11 -10 -10 -10 -9 -8 -7 -6 ------- Run | Yrd Mat Min Exi Min Mat Fac Fac Maximum Alert Level . | . . . . . . . . Low Security (%) 100 | 100 100 100 . 100 100 100 100 Level 1 . | . . . . . . . . Level 2 . | . . . . . . . . Level 3 . | . . . . . . . . Level 4 . | . . . . . . . . Level 5 . | . . . . . . . . High Security . | . . . . . . . . Max Security . | . . . . . . . . Peak Influence 132 | 5 . 108 . 45 109 44 132 Initial 39 | . . . . . 17 39 . Average 14 | . . 33 . 1 62 3 7 Influence Increases 1005 | 10 . 417 . 45 182 74 277 Destroy 0b10 Robot/C 380 | . . 300 . . 20 . 60 Destroy 0b10 Robot/NC 15 | 10 . . . . . . 5 Destroy Leader 60 | . . 50 . . 10 . . Allied During Kill 22 | . . 22 . . . . . Successful Hack 61 | . . . . . 17 14 30 Destroy Structure 2 | . . . . . . . 2 Partial Spotted 45 | . . . . . 15 . 30 Lose Combat Pursuer 420 | . . 45 . 45 120 60 150 Influence Decreases 873 | 10 . 375 42 . 138 163 145 Entered New Map 120 | . . . 42 . 28 50 . Time Decay 604 | 10 . 300 . . 110 113 71 Lost Part 84 | . . 10 . . . . 74 Lost Ally 65 | . . 65 . . . . . Squads Dispatched 5 | . . 1 . 1 . 2 1 Investigation 1 | . . . . 1 . . . Extermination 3 | . . . . . . 2 1 Reinforcement . | . . . . . . . . Assault 1 | . . 1 . . . . . Garrison . | . . . . . . . . Intercept . | . . . . . . . . Searches Triggered . | . . . . . . . . Construction Impeded . | . . . . . . . . Haulers Reinforced . | . . . . . . . . Active Scanning Responses . | . . . . . . . . Cargo Convoy Interrupts . | . . . . . . . . Stealth | -11 -10 -10 -10 -9 -8 -7 -6 --------- Run | Yrd Mat Min Exi Min Mat Fac Fac Distress Signals 5 | . . . . . 2 . 3 Communications Jammed . | . . . . . . . . Distress Signals . | . . . . . . . . Times Spotted 65 | . 4 14 . 7 13 7 20 Peak Tracking Total 12 | . 2 4 . 3 7 4 12 Tactical Retreats 12 | . . 3 . 1 3 2 3 Traps | -11 -10 -10 -10 -9 -8 -7 -6 ------- Run | Yrd Mat Min Exi Min Mat Fac Fac Traps Triggered 2 | . 2 . . . . . . Indirectly . | . . . . . . . . Trap Hack Attempts . | . . . . . . . . Triggered . | . . . . . . . . Disarmed 3 | . . . . . . 3 . Reprogrammed . | . . . . . . . . Reused . | . . . . . . . . Traps Extracted . | . . . . . . . . Installed . | . . . . . . . . Triggered . | . . . . . . . . Machines | -11 -10 -10 -10 -9 -8 -7 -6 ---------- Run | Yrd Mat Min Exi Min Mat Fac Fac Machines Disabled . | . . . . . . . . Max in Single Turn . | . . . . . . . . Machines Repaired . | . . . . . . . . Machines Dismantled . | . . . . . . . . Machines Sabotaged . | . . . . . . . . Overloaded Fab Kills . | . . . . . . . . Hacking | -11 -10 -10 -10 -9 -8 -7 -6 --------- Run | Yrd Mat Min Exi Min Mat Fac Fac Machines Accessed 13 | . 1 2 1 1 3 3 2 Terminals 6 | . . 2 . . 2 1 1 Fabricators 1 | . . . . . . 1 . Repair Stations 1 | . . . . . . . 1 Recycling Units 1 | . 1 . . . . . . Scanalyzers 2 | . . . . . 1 1 . Garrison Access . | . . . . . . . . Total Hacks 24 | . 3 3 1 1 6 8 2 Successful 13 | . . . 1 1 4 5 2 Failed 10 | . 3 3 . . 2 2 . Catastrophic 3 | . 1 1 . . 1 . . Database Lockouts 1 | . . . . . . 1 . Manual 1 | . . . 1 . . . . Terminals 9 | . . 3 . . 3 2 1 Fabricators 1 | . . . . . . 1 . Repair Stations 1 | . . . . . . . 1 Recycling Units 3 | . 3 . . . . . . Scanalyzers 8 | . . . . . 3 5 . Garrison Access . | . . . . . . . . Terminal Hacks 6 | . . . 1 1 2 1 1 Prototype ID Bank 1 | . . . . . 1 . . Open Door 1 | . . . . 1 . . . Repair Station Index 1 | . . . . . 1 . . Locate Traps 1 | . . . . . . . 1 Disarm Traps 1 | . . . . . . 1 . Proto ID Catalog 1 | . . . 1 . . . . Fabricator Hacks 1 | . . . . . . 1 . Build 1 | . . . . . . 1 . Repair Station Hacks 1 | . . . . . . . 1 Refit 1 | . . . . . . . 1 Recycling Unit Hacks . | . . . . . . . . Scanalyzer 5 | . . . . . 2 3 . Retrieve Study 5 | . . . . . 2 3 . Garrison Access Hacks . | . . . . . . . . Unauthorized Hacks . | . . . . . . . . Terminals . | . . . . . . . . Fabricators . | . . . . . . . . Repair Stations . | . . . . . . . . Recycling Units . | . . . . . . . . Scanalyzers . | . . . . . . . . Garrison Access . | . . . . . . . . Data Cores Recovered . | . . . . . . . . Used . | . . . . . . . . Hacking Detections 8 | . 1 2 . . 2 2 1 Full Trace Events . | . . . . . . . . Feedback Events . | . . . . . . . . Feedback Blocked . | . . . . . . . . Robot Schematics Acquired . | . . . . . . . . Robots Built . | . . . . . . . . Authchips . | . . . . . . . . Time . | . . . . . . . . Total Robot Build Rating . | . . . . . . . . Part Schematics Acquired . | . . . . . . . . Parts Built 2 | . . . . . . 2 . Authchips . | . . . . . . . . Time 47 | . . . . . . 47 . Total Part Build Rating 10 | . . . . . . 10 . Part Studies Acquired 4 | . . . . . 2 2 . Parts Repaired . | . . . . . . . . Time . | . . . . . . . . Parts Recycled . | . . . . . . . . Recycled Matter . | . . . . . . . . Retrieved Matter . | . . . . . . . . Retrieved Components . | . . . . . . . . Parts Scanalyzed . | . . . . . . . . Part Schematics Acquired . | . . . . . . . . Parts Damaged . | . . . . . . . . Bothacking | -11 -10 -10 -10 -9 -8 -7 -6 ------------ Run | Yrd Mat Min Exi Min Mat Fac Fac Used RIF Installer . | . . . . . . . . Robots Hacked . | . . . . . . . . Non-combat . | . . . . . . . . Combat . | . . . . . . . . Robot Hacks Applied . | . . . . . . . . Relay Couplers Released . | . . . . . . . . Fabnet Peak Effective % . | . . . . . . . . Robots Rewired . | . . . . . . . . Allies Hacked . | . . . . . . . . Hacks Repelled . | . . . . . . . . Allies | -11 -10 -10 -10 -9 -8 -7 -6 -------- Run | Yrd Mat Min Exi Min Mat Fac Fac Total Allies 7 | . . 6 . . . 1 . Largest Group 3 | . . 3 2 . . 1 1 Highest-Rated Group 47 | . . 47 43 . . 37 37 Highest-Rated Ally 37 | . . 31 31 . . 37 37 Total Orders 3 | . . . . . . 2 1 STAY 2 | . . . . . . 1 1 FOLLOW 1 | . . . . . . 1 . Ally Attacks 41 | . . 41 . . . . . Total Damage 415 | . . 415 . . . . . Kills 8 | . . 8 . . . . . Allies Corrupted . | . . . . . . . . Allies Melted . | . . . . . . . . Field Lobotomies 1 | . . . . . . 1 . Intel | -11 -10 -10 -10 -9 -8 -7 -6 ------- Run | Yrd Mat Min Exi Min Mat Fac Fac Active Infowar (turns) 3728 | 8 270 1045 290 51 . 1229 835 Sensors 683 | . . 342 290 51 . . . Traps 2064 | . . . . . . 1229 835 Seismic 981 | 8 270 703 . . . . . Robot Analysis Total . | . . . . . . . . Derelict Logs Recovered 2 | . . 1 . 1 . . . Drone Launches . | . . . . . . . . Drone Recoveries . | . . . . . . . . Exploration | -11 -10 -10 -10 -9 -8 -7 -6 ------------- Run | Yrd Mat Min Exi Min Mat Fac Fac Turns Passed 4652 | 132 296 1048 290 270 226 1418 972 Spaces Moved 3299 | 80 222 674 241 352 251 891 588 Core 215 | 11 5 . . . . . 199 Treads . | . . . . . . . . Legs 1238 | 69 217 674 241 37 . . . Wheels . | . . . . . . . . Hover 1846 | . . . . 315 251 891 389 Flight . | . . . . . . . . Fastest Speed 50 | 50 120 120 120 60 60 56 50 Average Speed 81 | 110 122 120 120 66 60 56 56 Slowest Speed 250 | 120 250 120 120 120 60 116 250 Overloaded Moves . | . . . . . . . . Propulsion Burnouts . | . . . . . . . . Robots Hopped . | . . . . . . . . Potential Cave-ins . | . . . . . . . . Cave-ins Triggered . | . . . . . . . . Exploration Rate (%) 40 | 4 40 98 69 54 31 17 14 Regions Visited 7 Branch Regions 3 Pre-discovered Areas 1 | . . . . 1 . . . Known Exits Taken 1 | . . . . . 1 . . Unknown Exits Taken 6 | 1 1 1 1 1 . 1 . Scrap Searched 3 | . . 2 . 1 . . . Spaces Dug . | . . . . . . . . Terrain Destroyed 2 | . . . . . . . 2 Melee . | . . . . . . . . Projectile . | . . . . . . . . AOE 2 | . . . . . . . 2 Terrain Rammed . | . . . . . . . . Walls Destroyed . | . . . . . . . . Machines Disabled . | . . . . . . . . Actions | -11 -10 -10 -10 -9 -8 -7 -6 --------- Run | Yrd Mat Min Exi Min Mat Fac Fac Total 5221 | 110 248 882 242 391 323 1804 1221 Wait 1787 | . 13 168 . 31 63 900 612 Move 3292 | 79 221 673 240 351 250 890 588 Hop . | . . . . . . . . Pick Up 40 | 12 9 9 1 1 2 5 1 Fast Attach . | . . . . . . . . Attach 28 | 9 4 2 . 1 3 5 4 Detach 4 | . . . . 1 1 2 . Swap 5 | . . 3 . . . . 2 Drop 23 | 2 1 7 1 6 1 1 4 Fire 40 | 8 . 20 . . 3 1 8 Melee . | . . . . . . . . Ram 2 | . . . . . . . 2 Kick . | . . . . . . . . Crush . | . . . . . . . . Escape Stasis . | . . . . . . . . Rewire . | . . . . . . . . Trap . | . . . . . . . . Miscellaneous . | . . . . . . . . Route ------- -11/Scrapyard -10/Materials -10/Mines (discovered 4 exits: [*Mat x2] / *Exi / [*Sub]) -10/Exiles -9/Mines -8/Materials (discovered 3 exits: *Fac / Sto x2) -7/Factory -6/Factory History --------- Turn | Location | Event 10 | -11/Scrapyard | Discovered new exit (range 16) 133 | -11/Scrapyard | Entered Materials 317 | -10/Materials | Build established: Mutant 395 | -10/Materials | Discovered new exit (range 15) 429 | -10/Materials | Entered Mines 443 | -10/Mines | Assisted by bots powering up and referring to "LRC-V3" 584 | -10/Mines | Found a damaged Exp. Sensor Array with a note attached 587 | -10/Mines | Found Prototype Device 608 | -10/Mines | Discovered new exit (range 8) 613 | -10/Mines | Discovered new exit (range 9) 816 | -10/Mines | Met a Derelict testing a Signal Generator 960 | -10/Mines | Learned 8 Materials zone layouts 1135 | -10/Mines | Identified Exp. Sensor Array 1158 | -10/Mines | Found DCF Scrap (12 items) 1354 | -10/Mines | Discovered new exit (range 5) 1365 | -10/Mines | Deemed a non-threat by the Exiles lab entrance 1366 | -10/Mines | Discovered new exit (range 5) 1477 | -10/Mines | Entered Exiles 1477 | -10/Exiles | Accompanied by 2 allies 1505 | -10/Exiles | Met 8R-AWN 1507 | -10/Exiles | Led the pair of lost Derelicts to a safe place 1525 | -10/Exiles | Met EX-HEX 1571 | -10/Exiles | Met EX-DEC 1601 | -10/Exiles | Met EX-BIN 1618 | -10/Exiles | Aligned with FarCom system 1619 | -10/Exiles | Given EX-Vault access code 1647 | -10/Exiles | Opened EX-Vault 1654 | -10/Exiles | Found Field Lobotomy Kit 1681 | -10/Exiles | Warned to stay clear of 0b10 Research branches 1697 | -10/Exiles | Exiles lab attacked by MAIN.C 1755 | -10/Exiles | Discovered new exit (range 12) 1767 | -10/Exiles | Left Exiles lab with Field Lobotomy Kit 1767 | -10/Exiles | Entered Mines 1801 | -9/Mines | Learned location of Zion (-6) 1803 | -9/Mines | Met a Derelict bent on vengeance 1807 | -9/Mines | Met a Derelict shopkeep closing up shop 1891 | -9/Mines | Assembled infested the area 2032 | -9/Mines | Discovered new exit (range 9) 2037 | -9/Mines | Entered Materials 2037 | -8/Materials | Evolved 4 slots: Power x1, Propulsion x1, Utility x2 2038 | -8/Materials | Identified exit to Storage 2038 | -8/Materials | Identified exit to Factory 2263 | -8/Materials | Entered Factory 2263 | -7/Factory | Evolved 2 slots: Power x1, Utility x1 2358 | -7/Factory | Central database locked down 2450 | -7/Factory | Fabricated Imp. Trap Scanner (x2) 3355 | -7/Factory | Assimilated P-60 Hacker with FLK Orb 3675 | -7/Factory | Discovered new exit (range 10) 3681 | -7/Factory | Entered another Factory area 3681 | -6/Factory | Accompanied by 1 ally 3681 | -6/Factory | Evolved 2 slots: Propulsion x1, Utility x1 4542 | -6/Factory | Core integrity fell below 50% 4567 | -6/Factory | Core integrity fell below 20% 4582 | -6/Factory | System corruption reached 10% 4598 | -6/Factory | Lost 11 parts (2p3n4u2w) 4653 | -6/Factory | Destroyed by P-60 Hacker with Shock Rifle Last Messages --------------- P-60 Hacker unfolds itself. Assembly Bed disabled. K-01 Serf collects debris. Door malfunctions. Slug penetrates Recycling Unit. K-01 Serf collects debris. Slug penetrates Recycling Unit. Imp. VSS Leg destroyed. Slug penetrates Recycling Unit. U-05 Engineer lays Concrete. Penetrated by Slug. U-05 Engineer lays Concrete. Slammed into K-01 Serf. Destabilizing: System corrupted (+2). System corrupted: Component data lost. W-25 Informer sends out distress signal. System corrupted: Heat flow error (+166). ALERT: Cargo convoy en route, clear transfer corridor. System corrupted: Component data lost. Map ----- +----------------------------------------------------+ | ?# """ # #?# """ """ # | | ?# # #?# ! """ """ + | | ?# """ # #?# """ """ # | | ?# """ ### T### #?# # | | ?# """ #?####?# #?#########+#### | | ?# #??????# #???????# | | ?##########??????# #???????# | | ?????????????????# #???????# | | ?????????????????# #???????# """" | | ?????????????????# #???????# """" | | ?????????????????# #???????# """" ###### | | ?????????????????# #???????# ^ """" #????? | | ?????????????????# #???????# """" #????? | | ?????????????????# #???????# """" #????? | | ?????????????????# #???????# """" #????? | | ?????????????????# #???????+ #????? | | ????????########?# #???????# #????? | | ???????? ?# #???????# ##?+###?????? | | ?????????! # ######### #???????????? | | ???????????""""" # #???????????? | | ???????????""""" + #???????????? | | ???????????""""" # """"p""""g !== #???????????? | | ???????????""""" # """" """" == #???????????? | | ??????????? ?# """" """" == #???????????? | | ?????????? ?# """" """" g #???????????? | | ?????????######??# """"@"""" "" #???????????? | | ?????????????????# """" """" "" #???????????? | | ?????????????????# F" #???????????? | | ?????????????????#! ""? #???????????? | | ?????????????????# o??????????????? | | ?????????????????# ??????????????? | | ?????????????????################/???????????????? | | ?????????????????????????????????? ??????????????? | | ???????????????????????????????????!?????????????? | | ?????????????????????????????????????????????????? | | ?????????????????????????????????????????????????? | | ????????????????????????????????????w????????????? | | ?????????????????????????????????????????????????? | | ?????????????????????????????????????????????????? | | ?????????????????????????????????????????????????? | | ?????????????????????????????????????????????????? | | ?????????????????????????????????????????????????? | | ?????????????????????????????????????????????????? | | ?????????????????????????????????????????????????? | | ?????????????????????????????????????????????????? | | ?????????????????????????????????????????????????? | | ?????????????????????????????????????????????????? | | ?????????????????????????????????????????????????? | | ?????????????????????????????????????????????????? | | ?????????????????????????????????????????????????? | +----------------------------------------------------+ Best States ------------- Heat Dissipation 47 Energy Generation 15 Energy Capacity 250 Matter Stores 300 Matter Capacity 300 Sight Range 16 Robot Scan Range 20 Terrain Scan Density 10 Armor Coverage 150 Evasion (%) 55 Item Schematics ----------------- None Robot Schematics ------------------ None Fabricated ------------ Imp. Trap Scanner | x2 | -7/Factory | Preloaded Repaired ---------- Nothing Studied --------- Gravmag System | -8/Materials | Hacked Aluminum Leg | -8/Materials | Hacked Airjet | -7/Factory | Hacked Hvy. Assault Rifle | -7/Factory | Hacked Alien Tech Used ----------------- None Achievements -------------- None Challenges ------------ None Game ------ Seed AluminumGravmagWheel Manual? 0 Play Time 00:43:38 Cumulative 20.8 hours Start 2026.09.07 @ 19:56:17 End 2026.09.07 @ 20:37:52 Sessions 1 Manual Loads 0 Difficulty Rogue Special Mode None Game No. 34 Rogue 32 Adventurer 2 Explorer 0 Win Type - Total 0 Types 0/0/0/0/0/0/0/0/0/0 Lore% 15 Gallery% 20 Achievement% 18 Wizard Run 0 Options --------- Layout 1 ASCII 1 Keyboard 0 Movement Numpad Keybinds 0 Fullscreen 2 Font 24/Smallcaps Map View 50x35 Zoom Use 0% Tactical HUD 0 Map Filters NONE Filters NONE Steam 1 RUN: b10b5244-2a59-4ed0-8bfc-d066cd98ff41